[Event "*** Titled Tuesday Blitz"]
[Site "Chess.com"]
[Date "2020.03.03"]
[Round "3"]
[White "Enriquack"]
[Black "deBaller"]
[Result "0-1"]
[WhiteElo "2037"]
[BlackElo "2356"]
[TimeControl "180+1"]
[EndTime "13:30:06 PST"]
[Termination "deBaller won by resignation"]

1. e4 {[%clk 0:03:00]} 1... e6 {[%clk 0:02:59.9]} 2. d4 {[%clk 0:02:59.8]} 2...
d5 {[%clk 0:03:00.1]} 3. Nc3 {[%clk 0:03:00]} 3... Nf6 {[%clk 0:02:59.9]} 4. Bg5
{[%clk 0:03:00]} 4... Be7 {[%clk 0:02:59.9]} 5. e5 {[%clk 0:02:58.7]} 5... Nfd7
{[%clk 0:03:00.2]} 6. h4 {[%clk 0:02:58.8]} 6... h6 {[%clk 0:03:00]} 7. Bxe7
{[%clk 0:02:57.2]} 7... Qxe7 {[%clk 0:03:00.9]} 8. Nb5 {[%clk 0:02:56.8]} 8...
Nb6 {[%clk 0:02:59.6]} 9. c3 {[%clk 0:02:27.3]} 9... a6 {[%clk 0:02:55.2]} 10.
Na3 {[%clk 0:02:27.2]} 10... c5 {[%clk 0:02:54.9]} 11. Nc2 {[%clk 0:02:25.2]}
11... Nc6 {[%clk 0:02:53.3]} 12. Nf3 {[%clk 0:02:25.4]} 12... Bd7 {[%clk
0:02:51.6]} 13. Qd2 {[%clk 0:02:23.6]} 13... Rc8 {[%clk 0:02:46.9]} 14. Rh3
{[%clk 0:02:19.5]} 14... Nc4 {[%clk 0:02:34.4]} 15. Bxc4 {[%clk 0:02:17.2]}
15... dxc4 {[%clk 0:02:34.3]} 16. O-O-O {[%clk 0:02:11.8]} 16... b5 {[%clk
0:02:32.9]} 17. dxc5 {[%clk 0:01:46.2]} 17... Rd8 {[%clk 0:02:29.5]} 18. Qd6
{[%clk 0:01:44.6]} 18... O-O {[%clk 0:02:16.5]} 19. Qc7 {[%clk 0:01:21.3]} 19...
a5 {[%clk 0:01:48.9]} 20. Nfd4 {[%clk 0:01:17.2]} 20... Be8 {[%clk 0:01:34.1]}
21. Qb6 {[%clk 0:00:57.9]} 21... Nxe5 {[%clk 0:01:12.8]} 22. b3 {[%clk
0:00:23.8]} 22... Nd3+ {[%clk 0:01:07.8]} 23. Kb1 {[%clk 0:00:20]} 23... Nxf2
{[%clk 0:00:58.1]} 24. Rf1 {[%clk 0:00:17.8]} 24... Nxh3 {[%clk 0:00:56.8]} 25.
gxh3 {[%clk 0:00:18]} 25... cxb3 {[%clk 0:00:55.1]} 26. axb3 {[%clk 0:00:18]}
26... Rc8 {[%clk 0:00:52.7]} 27. c6 {[%clk 0:00:17.2]} 27... Qc7 {[%clk
0:00:47.4]} 28. Qxb5 {[%clk 0:00:15.9]} 28... Bxc6 {[%clk 0:00:46.6]} 29. Qh5
{[%clk 0:00:14.9]} 29... Be4 {[%clk 0:00:37.5]} 30. c4 {[%clk 0:00:13.2]} 30...
Qd6 {[%clk 0:00:24.3]} 31. Rd1 {[%clk 0:00:10.2]} 31... Rb8 {[%clk 0:00:19.8]}
32. Kb2 {[%clk 0:00:08.6]} 32... a4 {[%clk 0:00:18.4]} 33. Qg4 {[%clk 0:00:08]}
33... Bxc2 {[%clk 0:00:14.7]} 0-1

[Event "*** Titled Tuesday Blitz"]
[Site "Chess.com"]
[Date "2020.03.03"]
[Round "3"]
[White "MarcoRiehle"]
[Black "Chessalary"]
[Result "1-0"]
[WhiteElo "2756"]
[BlackElo "2275"]
[TimeControl "180+1"]
[EndTime "13:30:10 PST"]
[Termination "MarcoRiehle won by resignation"]

1. e4 {[%clk 0:03:00.9]} 1... Nf6 {[%clk 0:03:00.9]} 2. e5 {[%clk 0:02:59.4]}
2... Nd5 {[%clk 0:02:59.5]} 3. Nc3 {[%clk 0:03:00.3]} 3... Nxc3 {[%clk
0:02:58.6]} 4. dxc3 {[%clk 0:03:01.2]} 4... d6 {[%clk 0:02:59.5]} 5. Nf3 {[%clk
0:02:59.5]} 5... Bg4 {[%clk 0:02:50.9]} 6. h3 {[%clk 0:02:52.3]} 6... Bxf3
{[%clk 0:02:48.7]} 7. Qxf3 {[%clk 0:02:53.2]} 7... d5 {[%clk 0:02:48.4]} 8. c4
{[%clk 0:02:51.3]} 8... e6 {[%clk 0:02:45]} 9. cxd5 {[%clk 0:02:45.9]} 9... Qxd5
{[%clk 0:02:45.9]} 10. Qxd5 {[%clk 0:02:45.9]} 10... exd5 {[%clk 0:02:45.3]} 11.
Bf4 {[%clk 0:02:46.4]} 11... Nd7 {[%clk 0:02:38.2]} 12. O-O-O {[%clk 0:02:42.4]}
12... c6 {[%clk 0:02:38.4]} 13. c4 {[%clk 0:02:41.1]} 13... Nb6 {[%clk
0:02:35.9]} 14. cxd5 {[%clk 0:02:40.3]} 14... Nxd5 {[%clk 0:02:36.8]} 15. Bg3
{[%clk 0:02:40.1]} 15... Bc5 {[%clk 0:02:28.1]} 16. Bc4 {[%clk 0:02:30.4]} 16...
O-O-O {[%clk 0:02:28.1]} 17. a3 {[%clk 0:02:27.3]} 17... Rd7 {[%clk 0:02:20.1]}
18. Rhe1 {[%clk 0:02:15.9]} 18... Rhd8 {[%clk 0:02:15.9]} 19. e6 {[%clk
0:02:04.2]} 19... fxe6 {[%clk 0:02:02.5]} 20. Rxe6 {[%clk 0:02:05.1]} 20... Nc7
{[%clk 0:02:03]} 21. Rxd7 {[%clk 0:02:01.3]} 21... Rxd7 {[%clk 0:02:03.9]} 22.
Re2 {[%clk 0:01:57.4]} 22... Bd6 {[%clk 0:02:03.3]} 23. Bxd6 {[%clk 0:01:48.6]}
23... Rxd6 {[%clk 0:02:00.4]} 24. Re7 {[%clk 0:01:42.6]} 24... Rd7 {[%clk
0:01:59.1]} 25. Rxd7 {[%clk 0:01:42.4]} 25... Kxd7 {[%clk 0:02:00]} 26. Kd2
{[%clk 0:01:42.7]} 26... Kd6 {[%clk 0:01:53.8]} 27. Ke3 {[%clk 0:01:39.8]} 27...
b5 {[%clk 0:01:45.6]} 28. Bg8 {[%clk 0:01:38]} 28... h6 {[%clk 0:01:38.9]} 29.
Ke4 {[%clk 0:01:37.2]} 29... c5 {[%clk 0:01:33.8]} 30. Kf5 {[%clk 0:01:30.6]}
30... Nd5 {[%clk 0:01:30.5]} 31. Bf7 {[%clk 0:01:13.4]} 31... c4 {[%clk
0:01:28.3]} 32. Kg6 {[%clk 0:01:09.3]} 32... Nf4+ {[%clk 0:01:15.7]} 33. Kxg7
{[%clk 0:01:08]} 33... Nxg2 {[%clk 0:01:16.6]} 34. Kxh6 {[%clk 0:01:06.9]} 34...
a5 {[%clk 0:01:16.4]} 35. Kg5 {[%clk 0:01:03.7]} 35... Ke5 {[%clk 0:01:15.4]}
36. h4 {[%clk 0:01:02.4]} 36... Nxh4 {[%clk 0:00:15.3]} 37. Kxh4 {[%clk
0:01:03.2]} 37... Kf6 {[%clk 0:00:16.2]} 38. Bxc4 {[%clk 0:00:59.6]} 38... bxc4
{[%clk 0:00:16.1]} 39. Kg4 {[%clk 0:00:59.9]} 39... Ke5 {[%clk 0:00:16.9]} 40.
f4+ {[%clk 0:00:59.6]} 40... Kd4 {[%clk 0:00:17.5]} 41. f5 {[%clk 0:00:59.4]}
41... Kd3 {[%clk 0:00:18.4]} 42. f6 {[%clk 0:00:59.6]} 42... Kc2 {[%clk
0:00:19.3]} 43. f7 {[%clk 0:00:59.9]} 43... Kxb2 {[%clk 0:00:20.2]} 44. f8=Q
{[%clk 0:00:59.9]} 44... c3 {[%clk 0:00:21.1]} 45. Qf6 {[%clk 0:00:56.1]} 45...
Kb3 {[%clk 0:00:20.3]} 46. Qb6+ {[%clk 0:00:54.2]} 46... Kxa3 {[%clk 0:00:17.5]}
47. Qxa5+ {[%clk 0:00:53.8]} 47... Kb2 {[%clk 0:00:18.4]} 48. Qb4+ {[%clk
0:00:53.6]} 48... Kc2 {[%clk 0:00:17]} 49. Kf3 {[%clk 0:00:53.7]} 49... Kd2
{[%clk 0:00:17.9]} 50. Ke4 {[%clk 0:00:53]} 50... Kc2 {[%clk 0:00:17.8]} 51. Kd4
{[%clk 0:00:53]} 1-0

[Event "*** Titled Tuesday Blitz"]
[Site "Chess.com"]
[Date "2020.03.03"]
[Round "3"]
[White "nocnypako"]
[Black "Bad4life"]
[Result "1-0"]
[WhiteElo "2570"]
[BlackElo "2276"]
[TimeControl "180+1"]
[EndTime "13:30:10 PST"]
[Termination "nocnypako won on time"]

1. d4 {[%clk 0:02:58.2]} 1... Nf6 {[%clk 0:02:59.2]} 2. c4 {[%clk 0:02:57.3]}
2... g6 {[%clk 0:02:59.7]} 3. Nc3 {[%clk 0:02:57.9]} 3... Bg7 {[%clk 0:02:59.6]}
4. e4 {[%clk 0:02:58.5]} 4... d6 {[%clk 0:03:00.2]} 5. Nf3 {[%clk 0:02:59.1]}
5... O-O {[%clk 0:03:00.7]} 6. Be2 {[%clk 0:02:59.7]} 6... e5 {[%clk 0:03:01.2]}
7. O-O {[%clk 0:03:00.4]} 7... exd4 {[%clk 0:03:01.7]} 8. Nxd4 {[%clk 0:02:59]}
8... Re8 {[%clk 0:03:02.2]} 9. f3 {[%clk 0:02:59.1]} 9... c6 {[%clk 0:03:02.7]}
10. Kh1 {[%clk 0:02:56.6]} 10... Nbd7 {[%clk 0:03:03]} 11. Rb1 {[%clk 0:02:41]}
11... a5 {[%clk 0:03:00.8]} 12. Bg5 {[%clk 0:02:39.2]} 12... Qb6 {[%clk
0:02:55.8]} 13. Nc2 {[%clk 0:02:38.8]} 13... Qc5 {[%clk 0:02:45.7]} 14. Qd2
{[%clk 0:02:30.2]} 14... Nb6 {[%clk 0:02:19.8]} 15. b3 {[%clk 0:02:15.1]} 15...
Nfd7 {[%clk 0:02:06.4]} 16. Be3 {[%clk 0:01:53.1]} 16... Qe5 {[%clk 0:01:59.5]}
17. Bd4 {[%clk 0:01:53.2]} 17... Qe7 {[%clk 0:01:54.9]} 18. Bxg7 {[%clk
0:01:49.2]} 18... Kxg7 {[%clk 0:01:55.8]} 19. Rbd1 {[%clk 0:01:49.7]} 19... d5
{[%clk 0:01:47.4]} 20. cxd5 {[%clk 0:01:43]} 20... cxd5 {[%clk 0:01:33.6]} 21.
Nxd5 {[%clk 0:01:43.6]} 21... Nxd5 {[%clk 0:01:33.3]} 22. Qxd5 {[%clk 0:01:44]}
22... a4 {[%clk 0:01:25]} 23. Bb5 {[%clk 0:01:33.2]} 23... axb3 {[%clk
0:01:11.2]} 24. axb3 {[%clk 0:01:34.1]} 24... Nf6 {[%clk 0:01:08.9]} 25. Qd4
{[%clk 0:01:32]} 25... Rf8 {[%clk 0:00:58.3]} 26. e5 {[%clk 0:01:28.2]} 26...
Ng8 {[%clk 0:00:50.2]} 27. e6+ {[%clk 0:01:27.9]} 27... Qf6 {[%clk 0:00:43]} 28.
exf7 {[%clk 0:01:27.3]} 28... Rxf7 {[%clk 0:00:39.6]} 29. Ne3 {[%clk 0:01:23.2]}
29... Be6 {[%clk 0:00:28.2]} 30. Bc4 {[%clk 0:01:13.5]} 30... Bxc4 {[%clk
0:00:20.6]} 31. Nxc4 {[%clk 0:01:14.4]} 31... Ra2 {[%clk 0:00:09.6]} 32. h3
{[%clk 0:01:04.6]} 32... h5 {[%clk 0:00:09.2]} 33. Nd6 {[%clk 0:01:03.1]} 33...
Qxd4 {[%clk 0:00:08.9]} 34. Rxd4 {[%clk 0:01:04]} 34... Re7 {[%clk 0:00:08.6]}
35. Ne4 {[%clk 0:01:00.1]} 35... Rb2 {[%clk 0:00:06.1]} 36. Rb4 {[%clk
0:00:59.1]} 36... Nh6 {[%clk 0:00:06]} 37. g4 {[%clk 0:00:48.2]} 1-0

[Event "*** Titled Tuesday Blitz"]
[Site "Chess.com"]
[Date "2020.03.03"]
[Round "3"]
[White "xamax2000"]
[Black "Manukyan_Artak"]
[Result "1-0"]
[WhiteElo "2675"]
[BlackElo "2434"]
[TimeControl "180+1"]
[EndTime "13:30:11 PST"]
[Termination "xamax2000 won on time"]

1. c4 {[%clk 0:03:00.9]} 1... g6 {[%clk 0:02:58.7]} 2. Nc3 {[%clk 0:03:00.5]}
2... Bg7 {[%clk 0:02:53.1]} 3. d4 {[%clk 0:03:00.7]} 3... d6 {[%clk 0:02:47.7]}
4. e4 {[%clk 0:03:00.8]} 4... c5 {[%clk 0:02:45.5]} 5. Nge2 {[%clk 0:02:57]}
5... cxd4 {[%clk 0:02:44.5]} 6. Nxd4 {[%clk 0:02:57.9]} 6... Nc6 {[%clk
0:02:45.1]} 7. Be3 {[%clk 0:02:58.1]} 7... Nf6 {[%clk 0:02:44.4]} 8. Be2 {[%clk
0:02:58.6]} 8... O-O {[%clk 0:02:43.8]} 9. O-O {[%clk 0:02:58.8]} 9... a6 {[%clk
0:02:39.2]} 10. Nc2 {[%clk 0:02:57.6]} 10... Be6 {[%clk 0:02:37.3]} 11. Rc1
{[%clk 0:02:50.2]} 11... Rc8 {[%clk 0:02:29.8]} 12. f3 {[%clk 0:01:45.1]} 12...
Qa5 {[%clk 0:02:12.7]} 13. Qd2 {[%clk 0:01:41.3]} 13... Rfd8 {[%clk 0:02:10.4]}
14. a3 {[%clk 0:01:25]} 14... Qh5 {[%clk 0:01:39.9]} 15. Bb6 {[%clk 0:01:21.6]}
15... Re8 {[%clk 0:01:34.5]} 16. b3 {[%clk 0:01:17.4]} 16... Nd7 {[%clk
0:01:21.5]} 17. Be3 {[%clk 0:01:16.2]} 17... Nc5 {[%clk 0:00:53.5]} 18. Rb1
{[%clk 0:01:12.8]} 18... a5 {[%clk 0:00:41.1]} 19. Nb5 {[%clk 0:01:10]} 19... a4
{[%clk 0:00:35.5]} 20. b4 {[%clk 0:01:09.9]} 20... Nb3 {[%clk 0:00:35.7]} 21.
Qd1 {[%clk 0:01:08.3]} 21... Ne5 {[%clk 0:00:33.4]} 22. f4 {[%clk 0:01:06]}
22... Ng4 {[%clk 0:00:32]} 23. h3 {[%clk 0:01:01.1]} 23... Nxe3 {[%clk
0:00:31.9]} 24. Nxe3 {[%clk 0:00:59.9]} 24... Qh4 {[%clk 0:00:27.9]} 25. Kh2
{[%clk 0:00:50.6]} 25... Qh6 {[%clk 0:00:17.6]} 26. Ng4 {[%clk 0:00:44.3]} 26...
Bxg4 {[%clk 0:00:17]} 27. Bxg4 {[%clk 0:00:43.6]} 27... Rxc4 {[%clk 0:00:17.1]}
28. Qe2 {[%clk 0:00:41.5]} 28... Rd4 {[%clk 0:00:11.2]} 29. Nxd4 {[%clk
0:00:40.9]} 29... Nxd4 {[%clk 0:00:11.6]} 30. Qd3 {[%clk 0:00:38.5]} 30... e5
{[%clk 0:00:11.8]} 31. f5 {[%clk 0:00:37.9]} 31... Qg5 {[%clk 0:00:11.2]} 32.
Rbc1 {[%clk 0:00:37.2]} 32... h5 {[%clk 0:00:10.2]} 33. Bd1 {[%clk 0:00:36.1]}
33... Bh6 {[%clk 0:00:10.3]} 34. Bxa4 {[%clk 0:00:34.9]} 34... Rd8 {[%clk
0:00:06.9]} 35. Bb3 {[%clk 0:00:34.7]} 35... Qe7 {[%clk 0:00:06.6]} 36. fxg6
{[%clk 0:00:34.6]} 36... Bxc1 {[%clk 0:00:05.7]} 37. gxf7+ {[%clk 0:00:32]}
37... Kf8 {[%clk 0:00:04.8]} 38. Qg3 {[%clk 0:00:26.4]} 1-0

[Event "*** Titled Tuesday Blitz"]
[Site "Chess.com"]
[Date "2020.03.03"]
[Round "3"]
[White "atbenina64"]
[Black "kayrakamer"]
[Result "1-0"]
[WhiteElo "2434"]
[BlackElo "2597"]
[TimeControl "180+1"]
[EndTime "13:30:12 PST"]
[Termination "atbenina64 won on time"]

1. c4 {[%clk 0:03:00]} 1... Nf6 {[%clk 0:02:57.8]} 2. Nc3 {[%clk 0:03:00.1]}
2... g6 {[%clk 0:02:58]} 3. e4 {[%clk 0:03:00.1]} 3... d6 {[%clk 0:02:58.5]} 4.
d4 {[%clk 0:03:00.5]} 4... Bg7 {[%clk 0:02:58.7]} 5. Be2 {[%clk 0:03:01.1]} 5...
O-O {[%clk 0:02:59]} 6. Be3 {[%clk 0:03:01.6]} 6... c5 {[%clk 0:02:58.2]} 7. d5
{[%clk 0:03:00.8]} 7... Qa5 {[%clk 0:02:58.3]} 8. Qd2 {[%clk 0:02:57.9]} 8... a6
{[%clk 0:02:57.4]} 9. f3 {[%clk 0:02:36.1]} 9... e6 {[%clk 0:02:42.2]} 10. Nh3
{[%clk 0:02:26]} 10... exd5 {[%clk 0:02:41.3]} 11. exd5 {[%clk 0:02:18.6]} 11...
Bxh3 {[%clk 0:02:41.2]} 12. gxh3 {[%clk 0:02:19.5]} 12... Re8 {[%clk 0:02:34.6]}
13. Kf2 {[%clk 0:02:18.5]} 13... Nbd7 {[%clk 0:02:23.1]} 14. Rae1 {[%clk
0:02:05.1]} 14... b5 {[%clk 0:02:19.3]} 15. cxb5 {[%clk 0:02:04.1]} 15... axb5
{[%clk 0:02:20.1]} 16. Bxb5 {[%clk 0:02:04]} 16... Qd8 {[%clk 0:02:04.2]} 17.
Bc6 {[%clk 0:01:57.4]} 17... Rb8 {[%clk 0:02:04.2]} 18. Bf4 {[%clk 0:01:51.8]}
18... Nh5 {[%clk 0:02:00.2]} 19. Bxd6 {[%clk 0:01:50.3]} 19... Bd4+ {[%clk
0:01:37.8]} 20. Kg2 {[%clk 0:01:46.4]} 20... Rxe1 {[%clk 0:00:32.6]} 21. Rxe1
{[%clk 0:01:45.9]} 21... Nf8 {[%clk 0:00:27.9]} 22. Bxb8 {[%clk 0:01:40.7]}
22... Qxb8 {[%clk 0:00:28.4]} 23. Re8 {[%clk 0:01:36.7]} 23... Nf4+ {[%clk
0:00:21.2]} 24. Kh1 {[%clk 0:01:34.4]} 24... Qd6 {[%clk 0:00:21.1]} 25. Ne4
{[%clk 0:01:32.6]} 25... Qc7 {[%clk 0:00:18.6]} 26. b4 {[%clk 0:01:12.3]} 26...
Kg7 {[%clk 0:00:15.1]} 27. bxc5 {[%clk 0:01:11.8]} 27... Be5 {[%clk 0:00:11]}
28. d6 {[%clk 0:01:11.5]} 28... Qxc6 {[%clk 0:00:11.4]} 29. Rxe5 {[%clk
0:01:12.1]} 29... N8e6 {[%clk 0:00:09.3]} 30. d7 {[%clk 0:01:08.9]} 30... Qb5
{[%clk 0:00:09.1]} 31. Qe1 {[%clk 0:00:53]} 31... Qb2 {[%clk 0:00:05.8]} 32. Nf2
{[%clk 0:00:45.6]} 32... Qd4 {[%clk 0:00:02.1]} 33. Re4 {[%clk 0:00:42.5]} 33...
Qxd7 {[%clk 0:00:01.2]} 34. Rxf4 {[%clk 0:00:40.7]} 1-0

[Event "*** Titled Tuesday Blitz"]
[Site "Chess.com"]
[Date "2020.03.03"]
[Round "3"]
[White "Gabrielian_Artur"]
[Black "Gogolev_Artemy"]
[Result "1-0"]
[WhiteElo "2773"]
[BlackElo "2473"]
[TimeControl "180+1"]
[EndTime "13:30:13 PST"]
[Termination "Gabrielian_Artur won on time"]

1. e4 {[%clk 0:03:00.9]} 1... c6 {[%clk 0:02:58.6]} 2. d4 {[%clk 0:03:00.4]}
2... d5 {[%clk 0:02:59.5]} 3. Nd2 {[%clk 0:03:00.7]} 3... dxe4 {[%clk
0:02:53.3]} 4. Nxe4 {[%clk 0:03:00.9]} 4... Bf5 {[%clk 0:02:53.7]} 5. Ng3 {[%clk
0:03:00.9]} 5... Bg6 {[%clk 0:02:54.1]} 6. c3 {[%clk 0:03:01.4]} 6... Nf6 {[%clk
0:02:47.9]} 7. Nh3 {[%clk 0:03:01.1]} 7... e5 {[%clk 0:02:45.8]} 8. dxe5 {[%clk
0:02:56.8]} 8... Qxd1+ {[%clk 0:02:44.6]} 9. Kxd1 {[%clk 0:02:57]} 9... Ng4
{[%clk 0:02:17.9]} 10. f4 {[%clk 0:02:53.6]} 10... h5 {[%clk 0:02:03.6]} 11. f5
{[%clk 0:02:50.6]} 11... h4 {[%clk 0:02:00.8]} 12. fxg6 {[%clk 0:02:49.8]} 12...
hxg3 {[%clk 0:01:59]} 13. gxf7+ {[%clk 0:02:49.7]} 13... Kxf7 {[%clk 0:01:57.3]}
14. e6+ {[%clk 0:02:44.6]} 14... Kxe6 {[%clk 0:01:49.5]} 15. Bc4+ {[%clk
0:02:38.3]} 15... Kd6 {[%clk 0:01:41]} 16. Bf4+ {[%clk 0:02:29.6]} 16... Kc5
{[%clk 0:01:40.6]} 17. Be6 {[%clk 0:02:28.5]} 17... Rxh3 {[%clk 0:01:16.5]} 18.
gxh3 {[%clk 0:02:04.5]} 18... Nf2+ {[%clk 0:01:07.6]} 19. Kc2 {[%clk 0:02:04.5]}
19... Nxh1 {[%clk 0:01:04.6]} 20. Rxh1 {[%clk 0:02:02.4]} 20... gxh2 {[%clk
0:00:52.7]} 21. Bxh2 {[%clk 0:01:59.9]} 21... Na6 {[%clk 0:00:44]} 22. b4+
{[%clk 0:01:47.9]} 22... Kb6 {[%clk 0:00:41.3]} 23. a4 {[%clk 0:01:47.4]} 23...
Re8 {[%clk 0:00:15.9]} 24. a5+ {[%clk 0:01:44.9]} 24... Kb5 {[%clk 0:00:15.3]}
25. Re1 {[%clk 0:01:31.4]} 25... Nxb4+ {[%clk 0:00:05]} 26. cxb4 {[%clk
0:01:30.5]} 26... Kxb4 {[%clk 0:00:04.9]} 27. a6 {[%clk 0:01:04.4]} 27... b5
{[%clk 0:00:04.2]} 28. Rb1+ {[%clk 0:00:51.1]} 28... Ka5 {[%clk 0:00:03.3]} 29.
Ra1+ {[%clk 0:00:50.6]} 29... Kb6 {[%clk 0:00:03.6]} 30. Bg4 {[%clk 0:00:50.2]}
30... Bc5 {[%clk 0:00:03.6]} 31. Rd1 {[%clk 0:00:43.7]} 31... Re4 {[%clk
0:00:03.7]} 32. Rd7 {[%clk 0:00:41.2]} 32... Bd4 {[%clk 0:00:03.7]} 33. Bb8
{[%clk 0:00:35.5]} 33... Kxa6 {[%clk 0:00:03.2]} 34. Kd3 {[%clk 0:00:30.7]}
34... Rxg4 {[%clk 0:00:01.6]} 35. hxg4 {[%clk 0:00:29.8]} 35... Bf6 {[%clk
0:00:01.6]} 36. Bxa7 {[%clk 0:00:28.2]} 36... b4 {[%clk 0:00:01.5]} 37. Kc4
{[%clk 0:00:28]} 1-0

[Event "*** Titled Tuesday Blitz"]
[Site "Chess.com"]
[Date "2020.03.03"]
[Round "3"]
[White "Sashadav97"]
[Black "tigra"]
[Result "0-1"]
[WhiteElo "2554"]
[BlackElo "2781"]
[TimeControl "180+1"]
[EndTime "13:30:14 PST"]
[Termination "tigra won on time"]

1. d4 {[%clk 0:03:00.9]} 1... Nf6 {[%clk 0:02:56.6]} 2. c4 {[%clk 0:03:00.9]}
2... g6 {[%clk 0:02:55.8]} 3. Nc3 {[%clk 0:03:00.9]} 3... d5 {[%clk 0:02:56]} 4.
Nf3 {[%clk 0:03:01]} 4... Bg7 {[%clk 0:02:55.5]} 5. Bg5 {[%clk 0:03:01.5]} 5...
Ne4 {[%clk 0:02:55.1]} 6. Bf4 {[%clk 0:03:01.5]} 6... Nxc3 {[%clk 0:02:54.7]} 7.
bxc3 {[%clk 0:03:02.4]} 7... c5 {[%clk 0:02:55.4]} 8. e3 {[%clk 0:02:58.8]} 8...
O-O {[%clk 0:02:54.9]} 9. cxd5 {[%clk 0:02:58.9]} 9... Qxd5 {[%clk 0:02:54.4]}
10. Be2 {[%clk 0:02:59.4]} 10... Nc6 {[%clk 0:02:54.3]} 11. O-O {[%clk
0:02:58.9]} 11... Bf5 {[%clk 0:02:54.2]} 12. Qb3 {[%clk 0:02:55.4]} 12... Be4
{[%clk 0:02:42.2]} 13. Bc4 {[%clk 0:02:42.1]} 13... Qd7 {[%clk 0:02:40.7]} 14.
Ng5 {[%clk 0:02:35.7]} 14... Qf5 {[%clk 0:02:34.3]} 15. f3 {[%clk 0:02:18.1]}
15... Bd3 {[%clk 0:02:33.3]} 16. Bxd3 {[%clk 0:01:40.3]} 16... Qxd3 {[%clk
0:02:32.6]} 17. Rad1 {[%clk 0:01:40.1]} 17... Qa6 {[%clk 0:02:25.2]} 18. Ne4
{[%clk 0:01:37.3]} 18... cxd4 {[%clk 0:02:13.5]} 19. cxd4 {[%clk 0:01:38.2]}
19... b6 {[%clk 0:02:13.8]} 20. Rc1 {[%clk 0:01:31.4]} 20... Rac8 {[%clk
0:02:13.5]} 21. d5 {[%clk 0:01:17.4]} 21... Ne5 {[%clk 0:02:06.8]} 22. Bxe5
{[%clk 0:01:15.3]} 22... Bxe5 {[%clk 0:02:05.5]} 23. f4 {[%clk 0:01:11.7]} 23...
Bg7 {[%clk 0:01:54.7]} 24. d6 {[%clk 0:01:05.7]} 24... Qb7 {[%clk 0:01:45.9]}
25. Qd3 {[%clk 0:00:56.1]} 25... exd6 {[%clk 0:01:40.6]} 26. Nxd6 {[%clk
0:00:43.4]} 26... Rcd8 {[%clk 0:01:39.4]} 27. e4 {[%clk 0:00:33]} 27... Qe7
{[%clk 0:01:07.6]} 28. e5 {[%clk 0:00:33.1]} 28... Rd7 {[%clk 0:01:07.9]} 29.
Qb3 {[%clk 0:00:31.3]} 29... Rfd8 {[%clk 0:01:02.5]} 30. Rce1 {[%clk 0:00:27.6]}
30... Bf8 {[%clk 0:00:56.7]} 31. Nxf7 {[%clk 0:00:22.3]} 31... Qc5+ {[%clk
0:00:55.9]} 32. Kh1 {[%clk 0:00:19.6]} 32... Rxf7 {[%clk 0:00:56.8]} 33. e6
{[%clk 0:00:20]} 33... Re7 {[%clk 0:00:56.5]} 34. f5 {[%clk 0:00:20.1]} 34...
gxf5 {[%clk 0:00:56.6]} 35. Qh3 {[%clk 0:00:19.3]} 35... Rd5 {[%clk 0:00:44.2]}
36. Qh4 {[%clk 0:00:14.9]} 36... Qd4 {[%clk 0:00:40.8]} 37. Qg5+ {[%clk
0:00:06.8]} 37... Rg7 {[%clk 0:00:39.2]} 38. Qh5 {[%clk 0:00:04.5]} 38... Qg4
{[%clk 0:00:35.8]} 39. Qxg4 {[%clk 0:00:03]} 39... fxg4 {[%clk 0:00:36.7]} 40.
Rc1 {[%clk 0:00:01.3]} 40... Rd8 {[%clk 0:00:35.6]} 0-1

[Event "*** Titled Tuesday Blitz"]
[Site "Chess.com"]
[Date "2020.03.03"]
[Round "3"]
[White "FedaMaster"]
[Black "dlp300"]
[Result "0-1"]
[WhiteElo "2433"]
[BlackElo "2662"]
[TimeControl "180+1"]
[EndTime "13:30:14 PST"]
[Termination "dlp300 won on time"]

1. e4 {[%clk 0:02:59.7]} 1... e5 {[%clk 0:02:58.3]} 2. Nf3 {[%clk 0:03:00]} 2...
Nc6 {[%clk 0:02:58.7]} 3. Bc4 {[%clk 0:02:59.1]} 3... Bc5 {[%clk 0:02:58.4]} 4.
Nc3 {[%clk 0:02:58.9]} 4... Nf6 {[%clk 0:02:56.1]} 5. d3 {[%clk 0:02:59.4]} 5...
d6 {[%clk 0:02:56.2]} 6. Bg5 {[%clk 0:02:58]} 6... h6 {[%clk 0:02:54.4]} 7. Be3
{[%clk 0:02:57.9]} 7... Bxe3 {[%clk 0:02:39.2]} 8. fxe3 {[%clk 0:02:58.8]} 8...
Be6 {[%clk 0:02:39.4]} 9. Bxe6 {[%clk 0:02:55.9]} 9... fxe6 {[%clk 0:02:39.6]}
10. Qd2 {[%clk 0:02:53.9]} 10... Qd7 {[%clk 0:02:35.6]} 11. O-O-O {[%clk
0:02:53.3]} 11... O-O-O {[%clk 0:02:35.5]} 12. Rdf1 {[%clk 0:02:50.2]} 12...
Rdf8 {[%clk 0:02:29.6]} 13. d4 {[%clk 0:02:40.9]} 13... exd4 {[%clk 0:02:25.1]}
14. exd4 {[%clk 0:02:40.9]} 14... Rf7 {[%clk 0:01:59.7]} 15. d5 {[%clk
0:02:27.6]} 15... Ne5 {[%clk 0:01:44.1]} 16. Nxe5 {[%clk 0:02:03.4]} 16... dxe5
{[%clk 0:01:45]} 17. dxe6 {[%clk 0:01:20.7]} 17... Qxe6 {[%clk 0:01:45.9]} 18.
Qe3 {[%clk 0:01:19.3]} 18... Kb8 {[%clk 0:01:43.6]} 19. Rf5 {[%clk 0:01:19.1]}
19... a6 {[%clk 0:01:21.1]} 20. Rhf1 {[%clk 0:01:16]} 20... Rd7 {[%clk
0:01:17.6]} 21. Qg3 {[%clk 0:01:11.7]} 21... Re8 {[%clk 0:01:13.3]} 22. Qg6
{[%clk 0:01:12]} 22... Red8 {[%clk 0:01:04.6]} 23. Qg3 {[%clk 0:01:07.4]} 23...
Nxe4 {[%clk 0:00:48.6]} 24. Qxe5 {[%clk 0:01:05.1]} 24... Nxc3 {[%clk
0:00:39.4]} 25. bxc3 {[%clk 0:00:38.6]} 25... Qxa2 {[%clk 0:00:35.7]} 26. Qa5
{[%clk 0:00:39.2]} 26... Qc4 {[%clk 0:00:28.5]} 27. Qb4 {[%clk 0:00:14.9]} 27...
Qe2 {[%clk 0:00:26.4]} 28. Kb2 {[%clk 0:00:06.8]} 28... Qxg2 {[%clk 0:00:24.9]}
29. Rf8 {[%clk 0:00:03.8]} 29... Qxh2 {[%clk 0:00:22.6]} 30. Rxd8+ {[%clk
0:00:03.2]} 30... Rxd8 {[%clk 0:00:23]} 31. Qe7 {[%clk 0:00:02.9]} 31... Rd6
{[%clk 0:00:19.8]} 32. Rf8+ {[%clk 0:00:02]} 32... Ka7 {[%clk 0:00:20.4]} 0-1